[Event "Azerbaijan-ch 1st League 2025"]
[Site "Baku"]
[Date "2025.01.13"]
[Round "8.8"]
[White "Davudov, Tunar"]
[Black "Alizada, Pasham"]
[Result "0-1"]
[Annotator "RC"]
[ECO "C03"]
[WhiteElo "2225"]
[BlackElo "2117"]
[PlyCount "100"]
[EventDate "2025.01.05"]
[EventType "swiss"]
[EventCountry "AZE"]
[SourceTitle "playchess.com"]
[Source "ChessBase"]
[SourceQuality "1"]
[TimeControl "40/5400+30:1800+30"]

1. e4 {[%emt 0:00:36]} e6 {[%emt 0:02:10]} 2. d4 {[%emt 0:00:15]} d5 {[%emt 0:00:03]} 3. Nd2 {[%emt 0:00:33]} Be7 {[%emt 0:00:03]} 4. Ngf3 {[%emt 0:00:55]} Nf6 {[%emt 0:00:04]} 5. Bd3 {[%emt 0:00:57]} c5 {[%emt 0:00:05]} 6. dxc5 {[%emt 0:03:04]} dxe4 {[%emt 0:00:10]} 7. Nxe4 {[%emt 0:01:37]} Nxe4 {[%emt 0:00:02]} 8. Bxe4 {[%emt 0:00:06]} Qxd1+ {[%emt 0:00:02]} 9. Kxd1 {[%emt 0:00:08]} Bxc5 {[%emt 0:00:01]} 10. Ke2 {[%emt 0:02:42]} Nd7 {[%emt 0:00:00]} 11. Bd2 {[%emt 0:06:14]} Ke7 {[%emt 0:01:02]} 12. b4 {[%emt 0:01:30]} Bd6 {[%emt 0:06:13]} 13. c4 {[%emt 0:10:13]} f5 {[%emt 0:00:04]} 14. Bc2 {[%emt 0:07:20]} b6 {[%emt 0:01:12]} 15. Rhd1 {[%emt 0:04:43]} Ba6 {[%emt 0:17:26]} 16. Bd3 {[%emt 0:00:23]} Rac8 {[%emt 0:11:08]} 17. Rac1 {[%emt 0:00:13]} Rhf8 {[%emt 0:01:01]} 18. Bg5+ {[%emt 0:11:49]} Nf6 {[%emt 0:01:30]} 19. c5 {[%emt 0:00:48]} Bxd3+ {[%emt 0:02:26]} 20. Rxd3 {[%emt 0:00:18]} bxc5 {[%emt 0:07:44]} 21. b5 {[%emt 0:04:28]} h6 {[%emt 0:09:28]} 22. Bxf6+ {[%emt 0:00:14]} gxf6 {[%emt 0:00:05]} 23. Nd2 {[%emt 0:09:08]} Bf4 {[%emt 0:01:49]} 24. Rc4 {[%emt 0:00:40]} Bxd2 {[%emt 0:02:11]} 25. Kxd2 {[%emt 0:00:04]} Rg8 {[%emt 0:10:28]} 26. g3 {[%emt 0:02:52]} Rc7 {[%emt 0:00:15]} 27. Ra4 {[%emt 0:07:20]} Rb8 {[%emt 0:14:13]} 28. Ra5 {[%emt 0:00:31]} c4 {[%emt 0:03:57]} 29. Rda3 {[%emt 0:03:08]} Rbb7 {[%emt 0:00:34]} 30. Kc3 {[%emt 0:02:06]} Kd6 {[%emt 0:00:25]} 31. R3a4 {[%emt 0:06:17]} Rc5 {[%emt 0:02:26]} 32. Rb4 {[%emt 0:01:25]} h5 {[%emt 0:00:58]} 33. Rb2 {[%emt 0:02:29]} Kd5 {[%emt 0:01:28]} 34. a4 {[%emt 0:00:05]} Ke4 {[%emt 0:00:50]} 35. Ra6 {[%emt 0:00:32]} e5 {[%emt 0:00:46]} 36. Rxf6 {[%emt 0:03:31]} Rd7 {[%emt 0:00:40]} 37. Rd2 {[%emt 0:00:33]} Rd3+ {[%emt 0:00:51]} 38. Kb4 {[%emt 0:01:40]} Rxd2 {[%emt 0:01:39]} 39. Kxc5 {[%emt 0:08:33]} c3 {[%emt 0:00:11]} 40. Kb4 {[%emt 0:00:00]} Kd3 {[%emt 0:00:00]} 41. Rd6+ {[%emt 0:00:00]} Ke2 {[%emt 0:05:03]} 42. Rc6 {[%emt 0:00:28]} c2 {[%emt 0:00:05]} 43. a5 {[%emt 0:02:11]} Kd1 {[%emt 0:00:14]} 44. a6 {[%emt 0:00:51]} Rd4+ {[%emt 0:01:34]} 45. Ka5 {[%emt 0:00:13]} c1=Q {[%emt 0:30:24]} 46. Rxc1+ {[%emt 0:00:04]} Kxc1 {[%emt 0:00:00]} 47. h3 {[%emt 0:00:06]} Kd2 {[%emt 0:00:00]} 48. b6 {[%emt 0:00:12]} Rd5+ {[%emt 0:00:00]} 49. Kb4 {[%emt 0:00:03]} axb6 {[%emt 0:00:00]} 50. a7 {[%emt 0:00:04]} Ra5 {[%emt 0:00:00]} 0-1

[Event "Azerbaijan-ch 1st League 2025"]
[Site "Baku"]
[Date "2025.01.13"]
[Round "8.9"]
[White "Baghirov, Mahammad"]
[Black "Rzayev, Chingiz"]
[Result "1-0"]
[Annotator "RC"]
[ECO "B01"]
[WhiteElo "1932"]
[BlackElo "2153"]
[PlyCount "129"]
[EventDate "2025.01.05"]
[EventType "swiss"]
[EventCountry "AZE"]
[SourceTitle "playchess.com"]
[Source "ChessBase"]
[SourceQuality "1"]
[TimeControl "40/5400+30:1800+30"]

1. e4 {[%emt 0:00:03]} d5 {[%emt 0:00:17]} 2. exd5 {[%emt 0:00:05]} Nf6 {[%emt 0:00:02]} 3. Nf3 {[%emt 0:00:07]} Nxd5 {[%emt 0:00:07]} 4. d4 {[%emt 0:00:05]} e6 {[%emt 0:00:22]} 5. c4 {[%emt 0:00:39]} Nf6 {[%emt 0:00:04]} 6. Nc3 {[%emt 0:00:10]} Be7 {[%emt 0:00:40]} 7. Be2 {[%emt 0:00:53]} O-O {[%emt 0:00:08]} 8. O-O {[%emt 0:00:04]} Nbd7 {[%emt 0:05:27]} 9. b3 {[%emt 0:02:56]} a5 {[%emt 0:21:39]} 10. Bb2 {[%emt 0:00:38]} Nb6 {[%emt 0:01:38]} 11. Qc2 {[%emt 0:01:22]} c6 {[%emt 0:10:51]} 12. Rad1 {[%emt 0:00:38]} Qc7 {[%emt 0:01:05]} 13. Bd3 {[%emt 0:01:45]} Nbd7 {[%emt 0:02:21]} 14. Rfe1 {[%emt 0:00:33]} Bd6 {[%emt 0:05:40]} 15. Ne4 {[%emt 0:07:31]} Be7 {[%emt 0:05:27]} 16. Ne5 {[%emt 0:09:48]} Nxe4 {[%emt 0:02:23]} 17. Bxe4 {[%emt 0:00:55]} f5 {[%emt 0:00:06]} 18. Bf3 {[%emt 0:02:15]} Nxe5 {[%emt 0:02:47]} 19. dxe5 {[%emt 0:00:19]} Bd7 {[%emt 0:00:32]} 20. Re3 {[%emt 0:01:28]} Rfd8 {[%emt 0:00:45]} 21. Red3 {[%emt 0:00:47]} Be8 {[%emt 0:00:22]} 22. c5 {[%emt 0:01:24]} Rxd3 {[%emt 0:00:11]} 23. Rxd3 {[%emt 0:00:06]} Rd8 {[%emt 0:00:21]} 24. Rd6 {[%emt 0:00:10]} Bxd6 {[%emt 0:01:22]} 25. exd6 {[%emt 0:00:10]} Qf7 {[%emt 0:16:50]} 26. Be2 {[%emt 0:03:58]} Bd7 {[%emt 0:05:20]} 27. f4 {[%emt 0:02:46]} Ra8 {[%emt 0:01:08]} 28. h3 {[%emt 0:03:02]} h6 {[%emt 0:01:35]} 29. Bc4 {[%emt 0:00:55]} g5 {[%emt 0:00:28]} 30. fxg5 {[%emt 0:06:56]} hxg5 {[%emt 0:00:13]} 31. Qc3 {[%emt 0:00:21]} Kh7 {[%emt 0:00:21]} 32. Qe5 {[%emt 0:01:27]} Rf8 {[%emt 0:01:18]} 33. Be2 {[%emt 0:01:51]} Kg6 {[%emt 0:04:44]} 34. h4 {[%emt 0:02:08]} gxh4 {[%emt 0:01:48]} 35. Qf4 {[%emt 0:00:09]} Qh7 {[%emt 0:00:29]} 36. Bc1 {[%emt 0:00:05]} Qg7 {[%emt 0:03:13]} 37. Qg5+ {[%emt 0:00:11]} Kh7 {[%emt 0:02:35]} 38. Qxh4+ {[%emt 0:00:30]} Kg8 {[%emt 0:00:09]} 39. Bh6 {[%emt 0:00:26]} Qa1+ {[%emt 0:00:58]} 40. Kf2 {[%emt 0:00:00]} Rf7 {[%emt 0:00:00]} 41. Qd8+ {[%emt 0:06:02]} Kh7 {[%emt 0:01:46]} 42. Qh4 {[%emt 0:00:07]} Kg8 {[%emt 0:00:14]} 43. Qg5+ {[%emt 0:01:39]} Kh7 {[%emt 0:00:32]} 44. Qh5 {[%emt 0:00:10]} Kg8 {[%emt 0:00:52]} 45. Qg6+ {[%emt 0:06:25]} Rg7 {[%emt 0:00:15]} 46. Bxg7 {[%emt 0:00:05]} Qxg7 {[%emt 0:00:05]} 47. Qxg7+ {[%emt 0:01:44]} Kxg7 {[%emt 0:00:01]} 48. g4 {[%emt 0:00:16]} Kf6 {[%emt 0:03:50]} 49. Ke3 {[%emt 0:00:26]} fxg4 {[%emt 0:00:34]} 50. Bxg4 {[%emt 0:00:22]} Ke5 {[%emt 0:00:12]} 51. Bf3 {[%emt 0:00:29]} b6 {[%emt 0:00:36]} 52. cxb6 {[%emt 0:00:07]} Kxd6 {[%emt 0:00:04]} 53. Kd4 {[%emt 0:00:37]} Bc8 {[%emt 0:01:20]} 54. b4 {[%emt 0:03:47]} Bb7 {[%emt 0:00:06]} 55. bxa5 {[%emt 0:01:28]} c5+ {[%emt 0:00:35]} 56. Ke3 {[%emt 0:00:07]} Ba6 {[%emt 0:00:45]} 57. Be2 {[%emt 0:00:35]} Bxe2 {[%emt 0:01:08]} 58. Kxe2 {[%emt 0:00:06]} Kc6 {[%emt 0:00:03]} 59. Kd3 {[%emt 0:00:08]} e5 {[%emt 0:00:01]} 60. Kc4 {[%emt 0:00:06]} e4 {[%emt 0:00:04]} 61. a4 {[%emt 0:00:01]} Kb7 {[%emt 0:00:06]} 62. Kb5 {[%emt 0:00:10]} e3 {[%emt 0:00:20]} 63. a6+ {[%emt 0:00:03]} Kb8 {[%emt 0:01:21]} 64. Kc6 {[%emt 0:00:04]} e2 {[%emt 0:00:14]} 65. a7+ {[%emt 0:00:03]} 1-0

[Event "Azerbaijan-ch 1st League 2025"]
[Site "Baku"]
[Date "2025.01.13"]
[Round "8.10"]
[White "Ahmadov, Fariz"]
[Black "Ibrahimli, Suat"]
[Result "0-1"]
[Annotator "RC"]
[ECO "C20"]
[WhiteElo "2224"]
[BlackElo "1949"]
[PlyCount "114"]
[EventDate "2025.01.05"]
[EventType "swiss"]
[EventCountry "AZE"]
[SourceTitle "playchess.com"]
[Source "ChessBase"]
[SourceQuality "1"]
[TimeControl "40/5400+30:1800+30"]

1. e4 {[%emt 0:00:17]} e5 {[%emt 0:00:13]} 2. Ne2 {[%emt 0:00:23]} Nf6 {[%emt 0:00:27]} 3. Nbc3 {[%emt 0:01:01]} Bc5 {[%emt 0:03:35]} 4. Ng3 {[%emt 0:00:42]} h5 {[%emt 0:00:45]} 5. h3 {[%emt 0:01:55]} c6 {[%emt 0:01:16]} 6. Qf3 {[%emt 0:01:20]} b5 {[%emt 0:12:24]} 7. d3 {[%emt 0:00:53]} h4 {[%emt 0:00:35]} 8. Nf5 {[%emt 0:00:16]} g6 {[%emt 0:27:50]} 9. Nh6 {[%emt 0:01:31]} Be7 {[%emt 0:00:16]} 10. d4 {[%emt 0:05:26]} d6 {[%emt 0:05:42]} 11. Bd2 {[%emt 0:07:22]} b4 {[%emt 0:14:25]} 12. Ne2 {[%emt 0:00:47]} Be6 {[%emt 0:00:36]} 13. Rd1 {[%emt 0:05:37]} Nbd7 {[%emt 0:06:01]} 14. b3 {[%emt 0:11:30]} a5 {[%emt 0:03:29]} 15. Ng4 {[%emt 0:05:25]} Nxg4 {[%emt 0:00:24]} 16. hxg4 {[%emt 0:00:31]} exd4 {[%emt 0:00:55]} 17. Nxd4 {[%emt 0:00:01]} Ne5 {[%emt 0:00:15]} 18. Qe3 {[%emt 0:04:25]} Bxg4 {[%emt 0:00:36]} 19. f3 {[%emt 0:01:45]} Bd7 {[%emt 0:00:13]} 20. Bc1 {[%emt 0:09:49]} Qb6 {[%emt 0:08:39]} 21. Bb2 {[%emt 0:04:53]} O-O-O {[%emt 0:02:46]} 22. Nf5 {[%emt 0:02:29]} Qxe3+ {[%emt 0:00:12]} 23. Nxe3 {[%emt 0:00:01]} Bf6 {[%emt 0:05:38]} 24. Bd4 {[%emt 0:09:51]} Kc7 {[%emt 0:01:20]} 25. Be2 {[%emt 0:02:02]} Be6 {[%emt 0:01:06]} 26. Kf2 {[%emt 0:06:19]} c5 {[%emt 0:00:43]} 27. Ba1 {[%emt 0:00:21]} Nd7 {[%emt 0:01:29]} 28. Bc4 {[%emt 0:01:01]} Bxa1 {[%emt 0:00:10]} 29. Rxa1 {[%emt 0:00:07]} Nb6 {[%emt 0:00:14]} 30. Bxe6 {[%emt 0:01:10]} fxe6 {[%emt 0:00:04]} 31. a3 {[%emt 0:00:08]} Ra8 {[%emt 0:00:36]} 32. axb4 {[%emt 0:00:37]} axb4 {[%emt 0:00:04]} 33. Rxa8 {[%emt 0:00:06]} Nxa8 {[%emt 0:00:15]} 34. Ra1 {[%emt 0:00:44]} Kb7 {[%emt 0:01:07]} 35. Nc4 {[%emt 0:00:32]} Rd8 {[%emt 0:00:42]} 36. f4 {[%emt 0:05:42]} Nb6 {[%emt 0:01:18]} 37. Nb2 {[%emt 0:02:56]} Rf8 {[%emt 0:00:51]} 38. Ke3 {[%emt 0:00:42]} g5 {[%emt 0:00:20]} 39. Nd3 {[%emt 0:01:42]} gxf4+ {[%emt 0:00:09]} 40. Nxf4 {[%emt 0:00:00]} Rg8 {[%emt 0:00:00]} 41. Rh1 {[%emt 0:07:54]} e5 {[%emt 0:01:05]} 42. Ne2 {[%emt 0:00:02]} Rxg2 {[%emt 0:00:15]} 43. Rxh4 {[%emt 0:00:03]} Kc6 {[%emt 0:00:09]} 44. Rh6 {[%emt 0:02:09]} Rg8 {[%emt 0:00:46]} 45. Nc1 {[%emt 0:04:36]} Rg3+ {[%emt 0:00:15]} 46. Ke2 {[%emt 0:00:54]} Rg2+ {[%emt 0:01:06]} 47. Kd3 {[%emt 0:00:37]} Rg1 {[%emt 0:00:57]} 48. Ne2 {[%emt 0:01:16]} Rd1+ {[%emt 0:00:13]} 49. Ke3 {[%emt 0:00:01]} c4 {[%emt 0:00:28]} 50. Ng3 {[%emt 0:06:34]} cxb3 {[%emt 0:00:07]} 51. cxb3 {[%emt 0:00:01]} Rb1 {[%emt 0:00:35]} 52. Nf5 {[%emt 0:00:03]} Rxb3+ {[%emt 0:00:05]} 53. Ke2 {[%emt 0:00:10]} Nc4 {[%emt 0:00:04]} 54. Rh8 {[%emt 0:00:16]} Rc3 {[%emt 0:00:21]} 55. Rc8+ {[%emt 0:00:27]} Kd7 {[%emt 0:00:11]} 56. Rb8 {[%emt 0:01:38]} b3 {[%emt 0:00:07]} 57. Rb7+ {[%emt 0:00:16]} Kc6 {[%emt 0:15:10]} 0-1

[Event "Azerbaijan-ch 1st League 2025"]
[Site "Baku"]
[Date "2025.01.13"]
[Round "8.12"]
[White "Gulumov, Muthat"]
[Black "Hajialiyev, Islam"]
[Result "1/2-1/2"]
[Annotator "RC"]
[ECO "C01"]
[WhiteElo "2054"]
[BlackElo "2217"]
[PlyCount "118"]
[EventDate "2025.01.05"]
[EventType "swiss"]
[EventCountry "AZE"]
[SourceTitle "playchess.com"]
[Source "ChessBase"]
[SourceQuality "1"]
[TimeControl "40/5400+30:1800+30"]

1. e4 {[%emt 0:00:03]} e6 {[%emt 0:05:31]} 2. d4 {[%emt 0:00:14]} d5 {[%emt 0:00:07]} 3. Nc3 {[%emt 0:00:13]} Bb4 {[%emt 0:00:22]} 4. exd5 {[%emt 0:00:06]} exd5 {[%emt 0:00:11]} 5. a3 {[%emt 0:00:03]} Bxc3+ {[%emt 0:02:16]} 6. bxc3 {[%emt 0:00:27]} Ne7 {[%emt 0:01:17]} 7. Nf3 {[%emt 0:00:47]} O-O {[%emt 0:00:16]} 8. Be2 {[%emt 0:00:30]} Bf5 {[%emt 0:01:28]} 9. O-O {[%emt 0:00:10]} Nd7 {[%emt 0:04:02]} 10. c4 {[%emt 0:01:15]} Re8 {[%emt 0:05:21]} 11. Rb1 {[%emt 0:03:26]} dxc4 {[%emt 0:02:29]} 12. Bxc4 {[%emt 0:00:52]} Nb6 {[%emt 0:02:58]} 13. Bb3 {[%emt 0:02:56]} Be6 {[%emt 0:04:12]} 14. Bxe6 {[%emt 0:01:26]} fxe6 {[%emt 0:00:09]} 15. Re1 {[%emt 0:04:52]} Ng6 {[%emt 0:02:47]} 16. Qd3 {[%emt 0:05:28]} Rc8 {[%emt 0:09:42]} 17. Rb5 {[%emt 0:10:15]} Qf6 {[%emt 0:12:33]} 18. Bg5 {[%emt 0:06:30]} Qf7 {[%emt 0:01:17]} 19. Bd2 {[%emt 0:11:03]} Rcd8 {[%emt 0:11:48]} 20. Rh5 {[%emt 0:08:23]} Nf8 {[%emt 0:08:14]} 21. Rhe5 {[%emt 0:01:42]} Nbd7 {[%emt 0:01:34]} 22. R5e2 {[%emt 0:07:55]} Qh5 {[%emt 0:09:45]} 23. Qb3 {[%emt 0:02:23]} c5 {[%emt 0:05:30]} 24. Qxb7 {[%emt 0:05:40]} cxd4 {[%emt 0:02:08]} 25. Ne5 {[%emt 0:03:17]} Nxe5 {[%emt 0:01:17]} 26. Rxe5 {[%emt 0:00:10]} Qg6 {[%emt 0:01:45]} 27. Rg5 {[%emt 0:01:22]} Qf7 {[%emt 0:00:30]} 28. Qa6 {[%emt 0:02:42]} Ng6 {[%emt 0:01:16]} 29. Rc5 {[%emt 0:02:02]} e5 {[%emt 0:01:06]} 30. f3 {[%emt 0:01:38]} Rb8 {[%emt 0:01:27]} 31. Qd3 {[%emt 0:02:09]} Rec8 {[%emt 0:01:07]} 32. Rxc8+ {[%emt 0:01:50]} Rxc8 {[%emt 0:00:04]} 33. h4 {[%emt 0:00:22]} h5 {[%emt 0:01:48]} 34. g3 {[%emt 0:00:36]} Re8 {[%emt 0:00:40]} 35. Rb1 {[%emt 0:01:15]} e4 {[%emt 0:00:17]} 36. fxe4 {[%emt 0:00:27]} Ne5 {[%emt 0:00:17]} 37. Qe2 {[%emt 0:00:51]} Qf3 {[%emt 0:00:26]} 38. Qg2 {[%emt 0:01:28]} Qxa3 {[%emt 0:00:43]} 39. Bf4 {[%emt 0:00:37]} Ng4 {[%emt 0:00:41]} 40. e5 {[%emt 0:00:00]} Qa2 {[%emt 0:00:00]} 41. Re1 {[%emt 0:01:58]} Qe6 {[%emt 0:15:54]} 42. Qe4 {[%emt 0:03:42]} Rd8 {[%emt 0:08:54]} 43. Rd1 {[%emt 0:02:12]} Qb6 {[%emt 0:00:49]} 44. Qd3 {[%emt 0:00:52]} Qe6 {[%emt 0:00:13]} 45. Qe4 {[%emt 0:00:24]} Qb6 {[%emt 0:00:48]} 46. Qd3 {[%emt 0:00:04]} a5 {[%emt 0:01:05]} 47. Re1 {[%emt 0:11:20]} Qe6 {[%emt 0:00:37]} 48. Qb5 {[%emt 0:04:21]} Rc8 {[%emt 0:03:50]} 49. Qxa5 {[%emt 0:02:44]} Rxc2 {[%emt 0:01:06]} 50. Qd8+ {[%emt 0:00:37]} Kh7 {[%emt 0:00:22]} 51. Qxd4 {[%emt 0:00:26]} Rc8 {[%emt 0:00:45]} 52. Qe4+ {[%emt 0:02:59]} Kh8 {[%emt 0:00:11]} 53. Kg2 {[%emt 0:00:24]} Rc4 {[%emt 0:00:48]} 54. Qa8+ {[%emt 0:00:57]} Kh7 {[%emt 0:00:02]} 55. Re2 {[%emt 0:00:10]} Rc6 {[%emt 0:01:33]} 56. Qa2 {[%emt 0:00:32]} Rc4 {[%emt 0:00:24]} 57. Re4 {[%emt 0:02:29]} Rc6 {[%emt 0:00:41]} 58. Qxe6 {[%emt 0:00:06]} Rxe6 {[%emt 0:00:01]} 59. Kf3 {[%emt 0:00:25]} Kg6 {[%emt 0:00:01]} 1/2-1/2

[Event "Azerbaijan-ch 1st League 2025"]
[Site "Baku"]
[Date "2025.01.13"]
[Round "8.13"]
[White "Idrisov, Tabriz"]
[Black "Huseynov, Ahmed"]
[Result "1-0"]
[Annotator "RC"]
[ECO "E12"]
[WhiteElo "2073"]
[BlackElo "1996"]
[PlyCount "97"]
[EventDate "2025.01.05"]
[EventType "swiss"]
[EventCountry "AZE"]
[SourceTitle "playchess.com"]
[Source "ChessBase"]
[SourceQuality "1"]
[TimeControl "40/5400+30:1800+30"]

1. Nf3 {[%emt 0:07:40]} Nf6 {[%emt 0:00:08]} 2. d4 {[%emt 0:01:11]} b6 {[%emt 0:00:46]} 3. c4 {[%emt 0:00:29]} e6 {[%emt 0:00:06]} 4. a3 {[%emt 0:03:39]} Bb7 {[%emt 0:00:50]} 5. Bg5 {[%emt 0:00:19]} Be7 {[%emt 0:01:06]} 6. Nc3 {[%emt 0:00:56]} O-O {[%emt 0:00:39]} 7. e3 {[%emt 0:02:48]} d6 {[%emt 0:01:09]} 8. Be2 {[%emt 0:03:13]} Nbd7 {[%emt 0:00:31]} 9. O-O {[%emt 0:00:10]} h6 {[%emt 0:02:10]} 10. Bh4 {[%emt 0:00:23]} Ne4 {[%emt 0:01:50]} 11. Bxe7 {[%emt 0:00:42]} Qxe7 {[%emt 0:00:06]} 12. Nxe4 {[%emt 0:02:29]} Bxe4 {[%emt 0:00:07]} 13. Nd2 {[%emt 0:00:28]} Bb7 {[%emt 0:18:03]} 14. b4 {[%emt 0:03:58]} e5 {[%emt 0:07:39]} 15. d5 {[%emt 0:03:04]} c6 {[%emt 0:09:11]} 16. e4 {[%emt 0:05:47]} cxd5 {[%emt 0:12:24]} 17. cxd5 {[%emt 0:01:12]} f5 {[%emt 0:03:48]} 18. Rc1 {[%emt 0:05:09]} Rac8 {[%emt 0:04:35]} 19. Qb3 {[%emt 0:07:25]} Nf6 {[%emt 0:11:02]} 20. Bf3 {[%emt 0:11:35]} Qd7 {[%emt 0:12:15]} 21. h3 {[%emt 0:07:43]} g5 {[%emt 0:03:10]} 22. exf5 {[%emt 0:06:28]} Qxf5 {[%emt 0:00:09]} 23. Nc4 {[%emt 0:01:54]} Rfd8 {[%emt 0:04:43]} 24. Ne3 {[%emt 0:02:02]} Qf4 {[%emt 0:03:11]} 25. Bg4 {[%emt 0:00:44]} Nxg4 {[%emt 0:00:51]} 26. hxg4 {[%emt 0:00:12]} Rf8 {[%emt 0:00:54]} 27. Rxc8 {[%emt 0:06:39]} Bxc8 {[%emt 0:00:17]} 28. Qd3 {[%emt 0:00:33]} Kg7 {[%emt 0:00:51]} 29. Qe2 {[%emt 0:00:58]} Rf7 {[%emt 0:00:31]} 30. g3 {[%emt 0:07:33]} Qf6 {[%emt 0:01:22]} 31. Rc1 {[%emt 0:00:28]} Bd7 {[%emt 0:00:27]} 32. Rc7 {[%emt 0:01:25]} a5 {[%emt 0:00:49]} 33. b5 {[%emt 0:01:55]} Qd8 {[%emt 0:00:37]} 34. Rc1 {[%emt 0:02:05]} a4 {[%emt 0:00:25]} 35. Rc2 {[%emt 0:01:46]} Qe8 {[%emt 0:00:25]} 36. Rb2 {[%emt 0:00:23]} Qc8 {[%emt 0:00:21]} 37. Rc2 {[%emt 0:01:15]} Qe8 {[%emt 0:00:04]} 38. Qc4 {[%emt 0:00:24]} Bxb5 {[%emt 0:00:43]} 39. Qb4 {[%emt 0:00:11]} Bd3 {[%emt 0:00:27]} 40. Rc3 {[%emt 0:00:00]} Qb5 {[%emt 0:00:00]} 41. Qxb5 {[%emt 0:09:55]} Bxb5 {[%emt 0:01:10]} 42. Nf5+ {[%emt 0:00:03]} Rxf5 {[%emt 0:26:42]} 43. gxf5 {[%emt 0:00:05]} Kf6 {[%emt 0:01:16]} 44. g4 {[%emt 0:00:40]} Be2 {[%emt 0:00:48]} 45. f3 {[%emt 0:00:18]} e4 {[%emt 0:00:43]} 46. fxe4 {[%emt 0:00:15]} Bxg4 {[%emt 0:00:05]} 47. Kf2 {[%emt 0:00:33]} Ke5 {[%emt 0:00:26]} 48. Ke3 {[%emt 0:00:08]} Bh5 {[%emt 0:01:22]} 49. Rc7 {[%emt 0:00:17]} 1-0

[Event "Azerbaijan-ch 1st League 2025"]
[Site "Baku"]
[Date "2025.01.13"]
[Round "8.14"]
[White "Musayev, Eldar"]
[Black "Azimov, Yasin"]
[Result "0-1"]
[Annotator "RC"]
[ECO "A06"]
[WhiteElo "2163"]
[BlackElo "1880"]
[PlyCount "76"]
[EventDate "2025.01.05"]
[EventType "swiss"]
[EventCountry "AZE"]
[SourceTitle "playchess.com"]
[Source "ChessBase"]
[SourceQuality "1"]
[TimeControl "40/5400+30:1800+30"]

1. Nf3 {[%emt 0:00:10]} Nf6 {[%emt 0:00:18]} 2. g3 {[%emt 0:00:12]} e6 {[%emt 0:00:17]} 3. Bg2 {[%emt 0:00:12]} d5 {[%emt 0:00:13]} 4. O-O {[%emt 0:00:10]} c5 {[%emt 0:00:14]} 5. b3 {[%emt 0:00:03]} Be7 {[%emt 0:00:08]} 6. Bb2 {[%emt 0:00:01]} O-O {[%emt 0:00:15]} 7. d4 {[%emt 0:00:15]} cxd4 {[%emt 0:00:37]} 8. Nxd4 {[%emt 0:00:01]} e5 {[%emt 0:00:16]} 9. Nb5 {[%emt 0:00:05]} Nc6 {[%emt 0:02:46]} 10. Nd2 {[%emt 0:01:22]} a6 {[%emt 0:03:20]} 11. Na3 {[%emt 0:01:23]} Qa5 {[%emt 0:02:53]} 12. Nab1 {[%emt 0:03:20]} Rd8 {[%emt 0:07:15]} 13. Nf3 {[%emt 0:01:38]} d4 {[%emt 0:04:31]} 14. Qe1 {[%emt 0:03:43]} Qxe1 {[%emt 0:10:42]} 15. Rxe1 {[%emt 0:02:58]} e4 {[%emt 0:04:08]} 16. Nfd2 {[%emt 0:04:55]} Bf5 {[%emt 0:04:25]} 17. g4 {[%emt 0:08:46]} Bg6 {[%emt 0:03:19]} 18. g5 {[%emt 0:02:40]} e3 {[%emt 0:02:02]} 19. gxf6 {[%emt 0:00:04]} exd2 {[%emt 0:00:21]} 20. Nxd2 {[%emt 0:00:09]} Bb4 {[%emt 0:06:26]} 21. Red1 {[%emt 0:00:48]} Bxc2 {[%emt 0:14:18]} 22. Rdc1 {[%emt 0:03:06]} Bg6 {[%emt 0:04:17]} 23. Nc4 {[%emt 0:02:30]} gxf6 {[%emt 0:05:43]} 24. Nb6 {[%emt 0:01:24]} Rab8 {[%emt 0:02:37]} 25. Nd5 {[%emt 0:01:20]} Kg7 {[%emt 0:04:35]} 26. Nxb4 {[%emt 0:05:14]} Nxb4 {[%emt 0:00:07]} 27. Rc4 {[%emt 0:00:04]} d3 {[%emt 0:09:47]} 28. Rxb4 {[%emt 0:02:05]} dxe2 {[%emt 0:01:41]} 29. Bf3 {[%emt 0:00:33]} Rd2 {[%emt 0:02:18]} 30. Bc3 {[%emt 0:04:34]} Rd3 {[%emt 0:00:02]} 31. Bxe2 {[%emt 0:00:16]} Rxc3 {[%emt 0:00:02]} 32. Bxa6 {[%emt 0:00:01]} Rc5 {[%emt 0:02:09]} 33. h4 {[%emt 0:03:59]} b6 {[%emt 0:00:23]} 34. a4 {[%emt 0:01:22]} Rd8 {[%emt 0:02:17]} 35. Rxb6 {[%emt 0:10:22]} Rd4 {[%emt 0:00:01]} 36. Bb7 {[%emt 0:00:06]} Rg4+ {[%emt 0:01:00]} 37. Kf1 {[%emt 0:01:35]} Bd3+ {[%emt 0:00:13]} 38. Ke1 {[%emt 0:00:03]} Rc2 {[%emt 0:00:25]} 0-1